bitfinex-derivatives/quotes_ETHF0:USTF0_20250709
["timestamp","ask_amount","ask_price","bid_price","bid_amount"]
[1752085765245,0.73517,2720.1,2720.0,0.73518]
[1752085765644,44.0078,2720.2,2720.1,0.73515]
[1752085767448,44.74293,2720.2,2720.1,0.73515]
[1752085767746,0.73517,2720.1,2720.0,0.73516]
[1752085767940,0.7352,2720.0,2719.9,0.73519]
[1752085768139,0.73524,2719.9,2719.8,0.73522]
[1752085768445,0.73519,2720.0,2719.9,0.73518]
[1752085768845,0.73523,2719.9,2719.8,0.73522]
[1752085769044,0.7352,2720.0,2719.9,0.73519]
[1752085769446,0.73522,2719.9,2719.8,0.73521]
[1752085769847,0.7352,2720.0,2719.9,0.7352]
[1752085770046,47.69455,2720.2,2720.1,0.73515]
[1752085770349,72.19095,2720.2,2720.1,0.73515]
[1752085771251,72.18695,2720.2,2720.1,0.73515]
[1752085771544,72.18695,2720.2,2719.7,3.2078]
[1752085771545,71.4518,2720.2,2719.7,3.2078]
[1752085771750,0.73517,2720.1,2720.0,0.73517]
[1752085771951,0.73517,2720.1,2719.7,5.04595]
[1752085771952,0.73519,2720.0,2719.9,0.73519]
[1752085772146,0.73524,2719.9,2719.8,0.73522]
[1752085772446,0.73524,2719.8,2719.7,3.2078]
[1752085772750,29.14313,2719.9,2719.8,0.73524]
[1752085773546,27.438,2719.9,2719.8,0.73524]
[1752085773752,44.74293,2720.2,2720.1,0.73515]
[1752085774053,28.17017,2720.1,2720.0,0.73518]
[1752085774246,30.94157,2720.1,2720.0,0.73518]
[1752085774448,30.2064,2720.1,2720.0,0.73518]
[1752085774851,30.94155,2720.1,2720.0,0.73518]
[1752085775051,27.435,2720.1,2720.0,0.73518]
[1752085775251,44.0078,2720.2,2720.1,0.73515]
[1752085775452,71.4378,2720.2,2720.1,0.73515]
[1752085776357,40.8,2720.2,2720.1,0.73515]
[1752085776652,68.227,2720.2,2720.1,0.73515]
[1752085777349,27.427,2720.2,2720.1,0.73515]
[1752085778050,71.8309,2720.3,2720.2,0.73513]
[1752085779254,0.74056552,2720.5,2720.4,0.73507]
[1752085779456,28.16256552,2720.5,2720.4,0.73507]
[1752085779764,27.42751552,2720.5,2720.4,0.73507]
[1752085780055,0.00551552,2720.5,2720.4,0.73507]
[1752085780457,0.00551552,2720.5,2720.4,2.35588904]
[1752085782052,0.00551552,2720.5,2720.4,6.17738904]
[1752085783358,0.00551552,2720.5,2720.4,7.74153074]
[1752085783848,0.00551552,2720.5,2720.4,8.27662494]
[1752085784248,0.00551552,2720.5,2720.4,6.17738904]
[1752085785655,0.00551552,2720.5,2720.4,8.27662494]
[1752085786261,0.00551552,2720.5,2720.4,6.17738904]
[1752085786948,0.00551552,2720.5,2720.4,8.27662494]
[1752085787151,0.00551552,2720.5,2720.4,6.17738904]
[1752085790157,0.00551552,2720.5,2720.4,6.79758904]
[1752085790354,0.00551552,2720.5,2720.4,5.82088904]
[1752085791058,0.62571552,2720.5,2720.4,2.97608904]
[1752085791259,0.00551552,2720.5,2720.4,2.97608904]
[1752085791557,0.00551552,2720.5,2720.4,2.33197]
[1752085791859,0.00551552,2720.5,2720.4,1.35527]
[1752085792259,5.52e-06,2720.5,2720.4,10.27617]
[1752085792557,0.73482,2721.4,2721.3,0.7348]
[1752085792758,1.35502,2721.4,2721.3,0.7348]
[1752085793055,0.73488,2721.1,2721.0,3.2078]
[1752085793256,1.83729,2721.0,2720.4,3.2078]
[1752085793463,1.83729,2721.0,2720.3,1.83772]
[1752085793464,3.17616875,2720.8,2720.7,0.73498]
[1752085793759,0.73497,2720.9,2720.8,0.73495]
[1752085794660,4.68297,2720.9,2720.8,0.73495]
[1752085794855,4.68297,2720.9,2720.7,3.2078]
[1752085794856,0.73497,2720.8,2720.7,3.2078]
[1752085795057,6.70997,2720.8,2720.7,0.73499]
[1752085795255,5.975,2720.8,2720.7,0.73499]
[1752085795456,2.9343,2720.8,2720.7,3.94279]
[1752085796656,5.784,2720.8,2720.7,3.94279]
[1752085797259,6.51897,2720.8,2720.7,3.94279]
[1752085797461,6.51897,2720.8,2720.7,0.73499]
[1752085797858,5.784,2720.8,2720.7,0.73499]
[1752085800160,7.13917,2720.8,2720.7,0.73499]
[1752085801160,8.04647,2720.8,2720.7,0.73499]
[1752085801555,7.13917,2720.8,2720.7,0.73499]
[1752085801760,8.04647,2720.8,2720.7,0.73499]
[1752085801960,0.73492,2721.0,2720.9,0.73494]
[1752085802160,27.9542,2721.0,2720.9,0.73494]
[1752085802358,3.8905,2721.2,2721.1,0.73488]
[1752085802561,4.5107,2721.2,2721.1,0.73488]
[1752085803068,5.24556,2721.2,2721.1,0.73488]
[1752085803269,4.5107,2721.2,2721.1,0.73488]
[1752085804062,2.9238,2721.4,2721.3,0.73483]
[1752085804268,3.544,2721.4,2721.3,0.73483]
[1752085804465,4.2788,2721.4,2721.3,0.73483]
[1752085804666,0.73488,2721.1,2721.0,3.94269]
[1752085804960,0.73488,2721.1,2721.0,3.94271]
[1752085805365,1.5275,2721.1,2721.0,3.94271]
[1752085805565,4.5405,2721.1,2721.0,3.94271]
[1752085807867,0.73497,2720.8,2720.7,3.2078]
[1752085808066,4.0002,2721.1,2720.8,1.8374]
[1752085808272,0.6202,2720.9,2720.8,1.35517]
[1752085808467,30.322,2721.1,2721.0,0.73491]
[1752085808669,0.6202,2721.1,2721.0,1.35511]
[1752085808861,2.9238,2721.4,2721.0,3.828]
[1752085809065,2.9238,2721.4,2721.3,0.73483]
[1752085809263,3.544,2721.4,2721.3,1.38253]
[1752085809665,68.106,2721.5,2721.4,0.7348]
[1752085809870,6.68871,2721.8,2721.7,0.73472]
[1752085810070,33.9219,2721.8,2721.7,1.38242]
[1752085810270,44.4845,2721.8,2721.7,0.73472]
[1752085810467,44.4845,2721.8,2721.7,1.38242]
[1752085810967,72.5192,2721.8,2721.7,0.6477]
[1752085811166,72.5192,2721.8,2721.7,1.38242]
[1752085811167,74.8289,2721.8,2721.7,1.38242]
[1752085811370,75.56261,2721.8,2721.7,0.73472]
[1752085811568,71.7815,2721.8,2721.7,1.38242]
[1752085811767,1.83683,2721.7,2721.3,3.94261]
[1752085812068,0.6649,2721.4,2721.3,1.38253]
[1752085812269,5.48557875,2721.7,2721.3,5.47531509]
[1752085812469,0.73474,2721.7,2721.6,0.73475]
[1752085812672,28.69264,2721.7,2721.6,3.00223917]
[1752085812869,1.39964,2721.7,2721.6,3.00223917]
[1752085813074,71.1086,2721.8,2721.7,0.73472]
[1752085813268,71.1086,2721.8,2721.6,2.26748917]
[1752085813269,71.1086,2721.8,2721.6,0.73473]
[1752085813466,0.6649,2721.7,2721.6,1.38243]
[1752085813670,0.6649,2721.7,2721.6,3.00133022]
[1752085814373,0.6649,2721.7,2721.6,6.20913022]
[1752085814574,71.1076,2721.8,2721.7,0.73472]
[1752085815071,1.83649,2722.2,2721.7,0.73472]
[1752085815072,54.78625,2722.6,2721.7,0.73472]
[1752085815270,0.73463,2722.1,2722.0,0.73462]
[1752085815472,1.39953,2722.1,2722.0,0.73462]
[1752085815670,41.4649,2722.1,2722.0,0.73462]
[1752085815869,0.6649,2722.1,2722.0,0.73462]
[1752085816771,68.81057,2722.3,2722.0,0.6477]
[1752085816972,0.73459,2722.2,2722.0,0.6477]
[1752085817278,0.6649,2722.1,2722.0,1.38231]
[1752085817576,68.076,2722.3,2722.2,0.73459]
[1752085817882,0.9872,2723.0,2722.2,5.04427]
[1752085818075,8.31287875,2722.9,2722.5,3.2078]
[1752085818273,0.6649,2722.6,2722.5,3.2078]
[1752085818573,28.2532,2723.0,2722.9,0.7344]
[1752085818574,27.264,2723.0,2722.9,0.7344]
[1752085818780,0.6649,2723.0,2722.9,0.7344]
[1752085818979,41.4649,2723.0,2722.9,0.7344]
[1752085819180,68.7269,2723.0,2722.9,0.7344]
[1752085819381,71.7028,2723.0,2722.5,4.8422]
[1752085819579,0.73441,2722.9,2722.8,0.73443]
[1752085819784,3.71031,2722.9,2722.8,0.73443]
[1752085819979,68.7269,2723.0,2722.9,0.7344]
[1752085820380,0.73442,2722.9,2722.8,0.73442]
[1752085820976,42.19929,2723.0,2722.9,0.7344]
[1752085821279,42.19929,2723.0,2722.8,0.73441]
[1752085821280,0.73441,2722.9,2722.8,0.73441]
[1752085821477,0.73441,2722.9,2722.5,9.70506]
[1752085821478,0.73448,2722.6,2722.5,3.8555]
[1752085821674,29.69517875,2722.6,2721.7,3.2078]
[1752085821878,0.73474,2721.7,2721.3,3.2078]
[1752085822181,0.7348,2721.4,2721.3,3.2078]
[1752085823579,31.40617875,2721.4,2721.3,3.2078]
[1752085823879,28.2302,2721.4,2721.0,3.2078]
[1752085824072,0.73488,2721.1,2721.0,3.9427]
[1752085824271,42.52208,2721.1,2721.0,3.2078]
[1752085824473,42.52208,2721.1,2721.0,3.94271]
[1752085824474,40.8,2721.1,2721.0,3.94271]
[1752085824671,0.73478,2721.5,2721.3,0.73482]
[1752085824879,27.241,2721.4,2721.3,0.73482]
[1752085825077,27.239,2721.5,2721.4,0.73479]
[1752085825285,0.7348,2721.4,2721.3,3.2078]
[1752085825575,0.73488,2721.1,2721.0,3.2078]
[1752085825781,2.44117875,2721.2,2720.9,0.73494]
[1752085825975,0.9872,2721.1,2720.8,0.73496]
[1752085826175,0.9872,2721.1,2720.7,3.2078]
[1752085826176,0.73497,2720.8,2720.7,3.2078]
[1752085826474,30.66237875,2720.8,2720.1,3.2078]
[1752085826678,3.17628875,2720.3,2720.1,3.2078]
[1752085826880,0.73509,2720.4,2720.2,0.73511]
[1752085827076,68.035,2720.4,2720.1,3.2078]
[1752085827382,0.9872,2720.3,2720.1,3.2078]
[1752085827582,4.0766,2720.3,2720.1,3.2078]
[1752085827778,68.035,2720.4,2720.3,0.7351]
[1752085827779,40.8,2720.4,2720.3,0.7351]
[1752085828983,40.8,2720.4,2720.1,3.2078]
[1752085829277,0.73513,2720.2,2720.1,3.2078]
[1752085829475,27.96213,2720.2,2720.1,4.1268]
[1752085829681,28.2142,2720.2,2720.1,4.1268]
[1752085829882,3.945,2720.2,2720.1,4.86195]
[1752085830082,40.8,2720.4,2720.3,0.7351]
[1752085830682,41.7872,2720.4,2720.1,4.1268]
[1752085830877,3.42837875,2720.3,2720.1,4.1268]
[1752085831082,0.73513,2720.2,2720.1,4.1268]
[1752085831386,1.72233,2720.2,2720.1,4.1268]
[1752085831581,3.945,2720.2,2720.1,4.86195]
[1752085832280,4.68013,2720.2,2720.1,4.1268]
[1752085832980,10.78288,2720.2,2719.2,3.2078]
[1752085833182,0.73527,2719.7,2719.5,0.7353]
[1752085833484,5.64897875,2719.9,2719.7,0.73525]
[1752085833485,4.195,2719.9,2719.7,0.73525]
[1752085833681,3.2078,2719.9,2719.7,0.73525]
[1752085833882,0.73518,2720.0,2719.5,5.04603]
[1752085834083,27.217,2719.9,2719.8,0.73524]
[1752085834979,27.217,2719.9,2719.5,3.2078]
[1752085835181,0.9872,2719.8,2719.2,3.2078]
[1752085835388,0.73546,2719.0,2718.9,0.73547]
[1752085835581,0.73549,2718.9,2718.6,3.2078]
[1752085835781,3.0855,2719.2,2718.6,3.2078]
[1752085835982,3.82091,2719.2,2718.7,1.83884]
[1752085836184,3.0855,2719.2,2718.9,0.73547]
[1752085836385,3.42837875,2719.5,2719.2,0.7354]
[1752085836683,2.9937,2719.8,2719.7,0.73526]
[1752085836889,43.7937,2719.8,2719.7,0.73526]
[1752085837085,44.52894,2719.8,2719.7,0.73526]
[1752085837284,49.06019875,2719.8,2719.0,1.8386]
[1752085837589,30.2945,2719.7,2719.0,1.8386]
[1752085837890,0.73534,2719.4,2719.3,0.73535]
[1752085838588,0.73534,2719.5,2719.3,0.73535]
[1752085838790,0.73534,2719.4,2719.0,2.8442]
[1752085839291,3.2078,2719.6,2719.5,0.73532]
[1752085839292,30.4108,2719.6,2719.5,0.73532]
[1752085839487,44.52895,2719.8,2719.7,0.73526]
[1752085839690,70.9957,2719.8,2719.7,0.73526]
[1752085840186,71.73094,2719.8,2719.6,0.73527]
[1752085840394,70.9957,2719.8,2719.7,0.73526]
[1752085840888,2.44117875,2719.9,2719.3,3.0542]
[1752085841091,2.44117875,2719.9,2719.2,0.73538]
[1752085841092,2.44117875,2719.4,2719.2,0.73538]
[1752085841282,43.24117875,2719.4,2718.9,5.96588]
[1752085841486,43.24117875,2719.4,2719.2,0.73539]
[1752085841487,3.17653875,2719.4,2719.2,0.73539]
[1752085841690,0.73539,2719.3,2718.9,4.1272]
[1752085841890,0.7354,2719.2,2719.1,0.7354]
[1752085842193,2.9261,2719.2,2719.1,0.7354]
[1752085842792,0.73545,2719.0,2718.9,0.9194]
[1752085843188,0.9264,2719.0,2718.9,0.73548]
[1752085843591,33.88061,2719.2,2719.1,0.73542]
[1752085843785,0.73544,2719.1,2719.0,0.73544]
[1752085843985,0.73546,2719.0,2718.9,0.73546]
[1752085844189,30.2191,2719.2,2719.1,0.73542]
[1752085844390,3.0241,2719.2,2719.1,0.73542]
[1752085844596,44.74319,2719.3,2719.2,0.7354]
[1752085844597,71.1978,2719.3,2719.2,0.7354]
[1752085844898,3.2078,2719.6,2719.5,0.73532]
[1752085845594,44.0078,2719.6,2719.5,0.73532]
[1752085845992,0.73528,2719.7,2719.6,0.73527]
[1752085846194,31.87475,2719.8,2719.7,0.73526]
[1752085846389,3.0241,2719.8,2719.7,0.73526]
[1752085846595,3.2078,2720.1,2720.0,0.73518]
[1752085846796,71.1928,2720.1,2720.0,0.73518]
[1752085848199,44.0078,2720.1,2720.0,0.73518]
[1752085848395,40.8,2720.1,2720.0,0.73518]
[1752085848601,27.18,2720.2,2720.1,0.73515]
[1752085849792,44.74292,2720.3,2720.2,0.73513]
[1752085849997,71.1858,2720.3,2720.2,0.73513]
[1752085850399,68.7131,2720.3,2720.2,0.73513]
[1752085850600,71.9209,2720.3,2720.2,0.73513]
[1752085850804,71.1858,2720.3,2720.2,0.73513]
[1752085851105,72.1122,2720.3,2719.8,3.2078]
[1752085851300,0.73514,2720.2,2720.1,0.73513]
[1752085851500,7.16141875,2720.2,2720.1,0.73513]
[1752085851707,0.73517,2720.1,2720.0,0.73516]
[1752085851906,31.88625,2720.1,2720.0,0.73516]
[1752085852101,44.0078,2720.3,2719.8,3.2078]
[1752085852406,27.164,2720.3,2720.1,3.2078]
[1752085852709,0.73516,2720.1,2720.0,0.73516]
[1752085852904,28.82356,2720.1,2720.0,0.73516]
[1752085853106,0.73521,2719.9,2719.8,0.74073552]
[1752085853305,0.73521,2719.9,2719.8,0.74075552]
[1752085853607,27.89521,2719.9,2719.8,0.74075552]
[1752085854403,27.16,2719.9,2719.8,0.74075552]
[1752085855509,27.89521,2719.9,2719.8,0.74075552]
[1752085856207,27.89521,2719.9,2719.8,0.00551552]
[1752085856405,31.89201,2719.9,2719.8,0.00551552]
[1752085856908,34.33318875,2719.9,2719.8,0.00551552]
[1752085857107,37.21308875,2719.9,2719.8,0.74075552]
[1752085857809,35.41801,2719.9,2719.8,0.74075552]
[1752085858002,30.686,2719.9,2719.8,0.00551552]
[1752085858207,35.19221,2719.9,2719.8,0.00551552]
[1752085858407,3.2078,2720.0,2719.9,0.73521]
[1752085858609,30.3498,2720.0,2719.9,0.73521]
[1752085858904,40.8,2720.2,2720.1,0.73515]
[1752085859110,67.939,2720.2,2720.1,0.73515]
[1752085859414,68.67413,2720.2,2720.1,0.73515]
[1752085859914,27.137,2720.2,2720.1,0.73515]
[1752085860312,41.53509,2720.4,2720.3,0.7351]
[1752085860607,68.67209,2720.4,2720.3,0.7351]
[1752085861012,0.73513,2720.3,2720.2,0.73511]
[1752085861205,0.73517,2720.1,2720.0,0.73515]
[1752085861407,0.73532,2719.5,2719.4,0.9193]
[1752085861604,30.30749875,2719.5,2719.4,0.9193]
[1752085861810,0.73537,2719.4,2719.3,0.73537]
[1752085862010,3.62157,2719.4,2719.3,0.73537]
[1752085862310,2.8862,2719.4,2719.3,0.73537]
[1752085862511,31.23389875,2719.5,2719.4,0.73534]
[1752085862813,31.23189875,2719.5,2719.4,0.73534]
[1752085863006,2.8862,2719.8,2719.7,0.73526]
[1752085863208,27.86125,2719.8,2719.7,0.73525]
[1752085863408,0.7353,2719.6,2719.5,0.7353]
[1752085863711,28.0514,2719.6,2719.5,0.7353]
[1752085863910,27.125,2719.6,2719.5,0.7353]
[1752085864512,27.86029,2719.6,2719.4,1.65463]
[1752085864709,0.73532,2719.5,2719.4,1.65463]
[1752085865015,0.73532,2719.5,2719.4,0.9193]
[1752085865406,4.49652,2719.5,2719.4,0.9193]
[1752085867411,0.73548,2718.9,2718.8,0.73549]
[1752085867608,0.73548,2718.9,2718.8,2.33717631]
[1752085867814,27.84847,2719.0,2718.9,0.73548]
[1752085868112,27.113,2719.0,2718.9,0.73548]
[1752085868415,27.84845,2719.0,2718.9,0.73548]
[1752085868614,50.9488,2719.3,2719.0,0.73544]
[1752085868816,28.0532,2719.2,2718.9,0.73545]
[1752085869012,0.9432,2719.1,2718.9,0.73547]
[1752085869221,27.108,2719.0,2718.9,0.73547]
[1752085869713,40.8,2719.3,2719.2,0.7354]
[1752085869913,13.63893,2720.8,2719.2,0.7354]
[1752085869914,27.106,2719.6,2719.4,0.73533]
[1752085870117,27.106,2719.6,2719.2,3.2078]
[1752085870118,0.73537,2719.3,2719.2,3.2078]
[1752085870418,0.73537,2719.3,2719.2,4.80878333]
[1752085871118,0.73536,2719.4,2719.3,0.73535]
[1752085871318,0.73537,2719.3,2719.2,3.2078]
[1752085871507,0.73537,2719.3,2718.9,3.4103189]
[1752085871508,36.1343575,2719.3,2716.7,0.944]
[1752085871710,36.1343575,2719.3,2717.7,4.2007589]
[1752085871711,0.73578,2717.8,2717.7,4.2007589]
[1752085872013,0.73578,2717.8,2717.2,0.944]
[1752085872014,71.1068,2717.8,2717.2,0.944]
[1752085872319,3.2078,2717.5,2717.4,0.73588]
[1752085872514,27.099,2717.7,2717.3,6.76139]
[1752085872708,0.73587,2717.5,2717.4,0.944]
[1752085872908,0.73588,2717.4,2717.3,2.9989]
[1752085873109,3.94368,2717.4,2717.3,2.9989]
[1752085874115,3.2078,2717.4,2717.3,2.9989]
[1752085874320,0.73584,2717.6,2717.3,3.9429]
[1752085874613,44.0078,2717.8,2717.6,0.73583]
[1752085874815,71.1018,2717.8,2717.5,0.73584]
[1752085875121,71.83758,2717.8,2717.6,3.9847]
[1752085875320,44.74358,2717.8,2717.7,0.944]
[1752085875715,44.0078,2717.8,2717.7,0.944]
[1752085875921,40.8,2717.8,2717.7,0.944]
[1752085876221,27.096,2717.9,2717.7,0.944]
[1752085876222,0.73577,2717.9,2717.7,1.6798]
[1752085876519,0.73577,2717.9,2717.8,0.944]
[1752085876818,3.94357,2717.9,2717.8,0.944]
[1752085877022,0.73584,2717.6,2717.4,4.72057]
[1752085877225,0.73586,2717.5,2717.4,0.944]
[1752085877419,3.2078,2717.6,2717.4,1.67988]
[1752085877614,0.73586,2717.5,2717.4,0.944]
[1752085877813,0.73588,2717.5,2717.3,3.73481]
[1752085878019,31.03565,2717.6,2717.4,0.73588]
[1752085878215,31.03565,2717.6,2717.4,1.67988]
[1752085878714,31.03563,2717.6,2717.5,0.73586]
[1752085878911,31.03563,2717.6,2717.4,1.67986]
[1752085879115,31.03563,2717.6,2717.1,0.0946]
[1752085879116,32.74097875,2717.6,2717.1,0.0946]
[1752085879312,27.091,2717.5,2717.2,0.944]
[1752085879617,27.091,2717.5,2717.4,0.73588]
[1752085879916,27.82686,2717.5,2717.3,0.73589]
[1752085880124,0.73588,2717.4,2717.3,0.73589]
[1752085880318,0.73592,2717.3,2717.2,0.73592]
[1752085880518,0.73594,2717.2,2717.1,0.0946]
[1752085880819,0.73597,2717.1,2717.0,0.73598]
[1752085881122,0.73599,2717.0,2716.9,1.68]
[1752085881320,0.73599,2717.0,2716.8,2.9982]
[1752085881321,0.73605,2716.9,2716.8,0.73604]
[1752085881624,0.73605,2716.8,2716.7,3.64886]
[1752085881823,0.73603,2716.9,2716.8,0.73603]
[1752085882023,0.73603,2716.9,2716.8,0.73605]
[1752085882524,6.38497875,2717.0,2716.9,0.73602]
[1752085883021,30.2948,2717.3,2717.2,0.73594]
[1752085883325,3.2078,2717.3,2717.2,1.67994]
[1752085885115,3.2078,2717.6,2717.2,1.67994]
[1752085885320,33.46780875,2717.6,2717.5,0.73586]
[1752085885521,6.38480875,2717.6,2717.5,0.73586]
[1752085886426,5.64897875,2717.6,2717.5,0.73586]
[1752085886722,6.38480875,2717.6,2717.5,0.73586]
[1752085886919,6.068,2717.9,2717.8,0.73578]
[1752085887120,6.80375,2717.9,2717.8,0.73578]
[1752085887317,33.88175,2717.9,2717.8,0.73578]
[1752085887518,33.88075,2717.9,2717.8,0.73578]
[1752085888114,6.068,2717.9,2717.8,0.73578]
[1752085888321,6.068,2717.9,2717.8,1.67978]
[1752085888322,3.2078,2717.9,2717.8,1.67978]
[1752085889219,40.80551552,2718.0,2717.9,0.73575]
[1752085890221,40.80551552,2718.0,2717.9,1.67975]
[1752085890422,0.00551552,2718.0,2717.9,1.67975]
[1752085891018,5.52e-06,2718.0,2717.9,9.12092875]
[1752085891220,3.2078,2718.6,2718.5,0.73559]
[1752085891416,3.2078,2718.6,2718.5,1.67959]
[1752085891919,3.2078,2719.0,2718.6,0.73556]
[1752085892121,30.24161875,2719.1,2719.0,0.73545]
[1752085892326,71.04161875,2719.1,2719.0,0.73545]
[1752085892626,73.96231875,2719.1,2719.0,0.73545]
[1752085893727,40.8,2719.1,2719.0,0.73545]
[1752085893922,40.8,2719.1,2719.0,1.67945]
[1752085894128,67.858,2719.1,2719.0,1.67945]
[1752085894319,40.8,2719.1,2719.0,0.73545]
[1752085895325,67.855,2719.1,2719.0,0.73545]
[1752085895523,40.8,2719.1,2719.0,0.73545]
[1752085895725,3.2078,2719.3,2719.2,0.7354]
[1752085895919,3.94312,2719.6,2719.5,0.7353]
[1752085896124,44.0078,2719.6,2719.5,0.7353]
[1752085896324,71.0598,2719.6,2719.5,0.7353]
[1752085896530,71.79509,2719.6,2719.5,0.7353]
[1752085896923,44.74309,2719.6,2719.5,0.7353]
[1752085897126,71.79209,2719.6,2719.5,0.7353]
[1752085897823,71.0568,2719.6,2719.2,0.944]
[1752085898028,0.73534,2719.5,2719.4,0.73533]
[1752085898423,30.2518,2719.6,2719.5,0.73532]
[1752085898624,3.2078,2719.6,2719.5,1.67942]
[1752085899730,3.94309,2719.6,2719.5,1.67942]
[1752085900120,0.73529,2719.6,2719.5,1.67942]
[1752085900326,3.2078,2719.6,2719.5,1.67942]
[1752085900526,3.94309,2719.6,2719.5,1.67942]
[1752085901735,0.73534,2719.4,2719.3,3.72886]
[1752085902227,2.44117875,2719.4,2719.2,0.73537]
[1752085902432,3.2078,2719.3,2719.2,0.73537]
[1752085903035,1.83857,2719.1,2718.0,0.9441]
[1752085903228,3.2078,2718.9,2718.0,0.9441]
[1752085903429,0.73557,2718.6,2718.4,0.7356]
[1752085903624,40.8,2718.7,2718.5,0.9441]
[1752085903825,0.73558,2718.6,2718.5,0.9441]
[1752085904231,40.8,2718.7,2718.2,0.9441]
[1752085904433,3.94344,2718.3,2718.2,0.9441]
[1752085904733,3.2078,2718.3,2717.9,1.67983]
[1752085904927,3.2078,2718.3,2718.0,0.9441]
[1752085905232,3.94346,2718.3,2718.1,0.9441]
[1752085905430,3.2078,2718.3,2718.2,1.67977]
[1752085905734,0.73562,2718.4,2718.3,0.73564]
[1752085905932,0.73561,2718.4,2718.3,1.67972]
[1752085906229,3.2078,2718.6,2717.9,8.00363]
[1752085906230,5.64897875,2718.6,2717.9,2.9565]
[1752085906436,0.73568,2718.2,2718.0,1.6798]
[1752085906636,3.94346,2718.3,2718.1,0.73569]
[1752085906936,3.94346,2718.3,2718.2,0.9441]
[1752085907325,3.2078,2718.3,2717.9,3.9006]
[1752085907532,0.73571,2718.1,2718.0,0.73572]
[1752085907730,0.73571,2718.1,2718.0,0.9441]
[1752085908636,0.73571,2718.1,2718.0,1.67982]
[1752085908838,0.73568,2718.2,2718.1,0.73569]
[1752085909032,0.73568,2718.2,2718.0,1.6798]
[1752085909232,0.73568,2718.2,2718.1,0.73569]
[1752085909530,6.38462875,2718.3,2718.2,0.73567]
[1752085909734,0.73567,2718.2,2718.1,0.73568]
[1752085910037,0.73567,2718.2,2717.8,0.9441]
[1752085910038,6.38463875,2718.3,2718.2,0.73567]
[1752085910236,5.64897875,2718.3,2718.2,0.73567]
[1752085910534,6.38461875,2718.3,2718.2,0.73567]
[1752085911233,0.73568,2718.2,2718.1,0.73567]
[1752085911935,0.73571,2718.1,2718.0,0.7357]
[1752085912527,5.64897875,2718.3,2718.0,0.9441]
[1752085912734,5.64897875,2718.3,2717.8,1.83945]
[1752085913035,3.2078,2718.3,2718.2,0.73567]
[1752085913230,3.2078,2718.3,2718.2,1.67977]
[1752085915240,3.2078,2718.3,2718.2,2.33987]
[1752085916133,0.73562,2718.4,2718.3,0.73564]
[1752085916335,0.73562,2718.4,2718.3,1.39574]
[1752085918237,0.73559,2718.5,2718.4,0.73559]
[1752085918435,0.73559,2718.5,2718.4,1.67969]
[1752085918633,0.73559,2718.5,2718.4,2.33979]
[1752085919335,3.94338,2718.6,2718.5,0.73559]
[1752085919530,3.2078,2718.6,2718.5,2.33979]
[1752085922234,3.8294,2718.6,2718.5,1.39569]
[1752085922441,4.56496,2718.6,2718.5,0.73559]
[1752085922835,3.8294,2718.6,2718.5,1.39569]
[1752085923242,3.2078,2718.6,2718.5,2.33979]
[1752085924534,3.8294,2718.6,2718.5,0.73559]
[1752085924741,4.56496,2718.6,2718.5,0.73559]
[1752085924936,0.73567,2718.3,2718.1,0.0941]
[1752085925141,3.65157,2718.2,2718.1,0.0941]
[1752085925938,3.65157,2718.2,2717.4,3.0262]
[1752085925939,1.83933,2718.0,2717.4,3.0262]
[1752085926144,2.44117875,2717.5,2717.4,0.73586]
[1752085926937,5.65449427,2717.7,2717.4,0.6601]
[1752085927141,0.73584,2717.6,2717.5,0.73584]
[1752085927343,0.73586,2717.5,2717.4,1.39597]
[1752085927540,3.65275,2717.6,2717.4,1.39597]
[1752085927743,3.65275,2717.6,2717.5,0.73586]
[1752085927937,3.65275,2717.6,2717.4,0.6601]
[1752085927938,3.21331552,2717.7,2717.6,0.73583]
[1752085928143,0.73585,2717.6,2717.4,0.6601]
[1752085928342,3.06277875,2717.5,2717.4,1.39596]
[1752085929041,6.13021552,2717.7,2717.4,1.39596]
[1752085929042,3.21331552,2717.7,2717.6,0.73583]
[1752085929247,3.83491552,2717.7,2717.6,0.73583]
[1752085929442,3.21331552,2717.7,2717.6,0.73583]
[1752085929841,3.21331552,2717.7,2717.6,2.35153]
[1752085930937,3.87311552,2717.7,2717.6,0.73583]
[1752085931343,3.87311552,2717.7,2717.6,1.35823]
[1752085931543,4.60891552,2717.7,2717.6,0.73583]
[1752085932141,0.73594,2717.2,2717.1,3.2078]
[1752085932348,0.73594,2717.2,2716.9,0.73601]
[1752085932349,0.73602,2717.0,2716.9,0.73601]
[1752085932643,2.44117875,2717.2,2716.8,3.94382]
[1752085932644,0.73602,2716.9,2716.8,3.94382]
[1752085932849,0.73602,2716.9,2716.8,0.73602]
[1752085933146,2.9427,2717.1,2716.5,6.2137]
[1752085933147,3.2078,2717.0,2716.5,6.2137]
[1752085933347,0.73609,2716.7,2716.6,0.73608]
[1752085934052,0.73607,2716.8,2716.7,0.73606]
[1752085934445,2.44117875,2716.8,2716.3,2.83373]
[1752085934648,3.2078,2716.6,2716.5,0.73613]
[1752085934844,3.20461733,2716.6,2716.5,0.73613]
[1752085935244,3.20461733,2716.6,2716.5,1.72943]
[1752085935453,43.24117875,2717.2,2716.6,0.73607]
[1752085935454,2.44117875,2716.9,2716.6,0.73607]
[1752085935660,0.73613,2716.6,2716.5,0.73611]
[1752085935848,3.17730875,2716.6,2716.5,0.73611]
[1752085936054,0.73613,2716.5,2716.4,0.73615]